fUST/lending_fUST_20240725
["ID","MTS","AMOUNT","RATE_DAILY","PERIOD"]
[333107292,1721871044112,-151.0,0.00013962,2]
[333107293,1721871044123,-1336.113117,0.00013962,2]
[333107294,1721871044140,-1114.56668,0.00013962,2]
[333107295,1721871044151,-1114.56668,0.00013962,2]
[333107296,1721871044160,-151.0,0.00013962,2]
[333107297,1721871044169,-151.0,0.00013962,2]
[333107298,1721871044180,-163.364259,0.00013962,2]
[333107299,1721871044192,-163.364259,0.00013962,2]
[333107300,1721871044202,-50456.250882,0.00013962,2]
[333107301,1721871044216,-4396.49,0.0001397,2]
[333107302,1721871044231,-4396.49,0.00013971,2]
[333107303,1721871044240,-4396.49,0.00013971,2]
[333107304,1721871044251,-4396.49,0.00013971,2]
[333107305,1721871044261,-4396.49,0.00013971,2]
[333107306,1721871044273,-4396.49,0.00013971,2]
[333107307,1721871044282,-4396.49,0.00013971,2]
[333107308,1721871044293,-4396.51641618,0.00013971,2]
[333107309,1721871044304,-500.0,0.00013972,2]
[333107310,1721871044314,-500.0,0.00013972,2]
[333107311,1721871044324,-500.0,0.00013972,2]
[333107312,1721871044334,-500.0,0.00013972,2]
[333107313,1721871044345,-500.0,0.00013972,2]
[333107314,1721871044356,-500.0,0.00013972,2]
[333107315,1721871044366,-500.0,0.00013972,2]
[333107316,1721871044377,-500.0,0.00013972,2]
[333107317,1721871044390,-500.0,0.00013972,2]
[333107318,1721871044401,-500.0,0.00013972,2]
[333107320,1721871044412,-964.1,0.00013972,2]
[333107322,1721871044423,-500.0,0.00013972,2]
[333107324,1721871044433,-360.73533547,0.00013972,2]
[333107326,1721871044443,-500.0,0.00013972,2]
[333107328,1721871044454,-500.0,0.00013972,2]
[333107331,1721871044465,-600.93614671,0.00013972,2]
[333107333,1721871044477,-639.71,0.00013972,2]
[333107335,1721871044487,-164.68506076,0.00013972,2]
[333107337,1721871044497,-1664.1,0.00013972,2]
[333107339,1721871044506,-500.0,0.00013972,2]
[333107340,1721871044515,-302.76904216,0.00013972,2]
[333107342,1721871044524,-500.0,0.00013972,2]
[333107344,1721871044533,-500.0,0.00013972,2]
[333107346,1721871044542,-500.0,0.00013972,2]
[333107348,1721871044552,-790.75,0.00013972,2]
[333107350,1721871044563,-500.0,0.00013972,2]
[333107353,1721871044572,-596.79,0.00013972,2]
[333107354,1721871044582,-500.0,0.00013972,2]
[333107357,1721871044592,-500.0,0.00013972,2]
[333107359,1721871044602,-500.0,0.00013972,2]
[333107361,1721871044612,-500.0,0.00013972,2]
[333107363,1721871044622,-500.0,0.00013972,2]
[333107365,1721871044632,-500.0,0.00013972,2]
[333107367,1721871044641,-500.0,0.00013972,2]
[333107369,1721871044651,-151.0,0.00013972,2]
[333107371,1721871044661,-500.0,0.00013972,2]
[333107373,1721871044671,-500.0,0.00013972,2]
[333107375,1721871044681,-1882.56,0.00013972,2]
[333107377,1721871044691,-1778.67,0.00013972,2]
[333107379,1721871044700,-500.0,0.00013972,2]
[333107381,1721871044710,-500.0,0.00013972,2]
[333107383,1721871044719,-151.0,0.00013972,2]
[333107385,1721871044733,-2018.77,0.00013972,2]
[333107387,1721871044742,-500.0,0.00013972,2]
[333107389,1721871044752,-151.0,0.00013972,2]
[333107391,1721871044763,-151.0,0.00013972,2]
[333107393,1721871044773,-151.0,0.00013972,2]
[333107395,1721871044782,-500.0,0.00013972,2]
[333107397,1721871044791,-258.011139,0.00013972,2]
[333107399,1721871044801,-500.0,0.00013972,2]
[333107401,1721871044810,-500.0,0.00013972,2]
[333107403,1721871044819,-264.410918,0.00013972,2]
[333107405,1721871044829,-1018.74,0.00013972,2]
[333107407,1721871044838,-264.410918,0.00013972,2]
[333107409,1721871044848,-500.0,0.00013972,2]
[333107411,1721871044857,-3232.88,0.00013972,2]
[333107414,1721871044867,-500.0,0.00013972,2]
[333107416,1721871044877,-500.0,0.00013972,2]
[333107418,1721871044886,-502.31498446,0.00013972,2]
[333107420,1721871044896,-374.31411848,0.00013972,2]
[333107422,1721871044906,-500.0,0.00013972,2]
[333107424,1721871044916,-500.0,0.00013972,2]
[333107426,1721871044926,-500.0,0.00013972,2]
[333107428,1721871044938,-500.0,0.00013972,2]
[333107430,1721871044948,-500.0,0.00013972,2]
[333107432,1721871044959,-1600.35,0.00013972,2]
[333107434,1721871044969,-394.384799,0.00013972,2]
[333107437,1721871044983,-394.384799,0.00013972,2]
[333107439,1721871044995,-394.384799,0.00013972,2]
[333107441,1721871045006,-394.384799,0.00013972,2]
[333107443,1721871045015,-500.0,0.00013972,2]
[333107445,1721871045025,-991.27,0.00013972,2]
[333107447,1721871045034,-500.0,0.00013972,2]
[333107449,1721871045043,-535.78,0.00013972,2]
[333107451,1721871045052,-500.0,0.00013972,2]
[333107453,1721871045062,-500.0,0.00013972,2]
[333107455,1721871045071,-234.57271414,0.00013972,2]
[333107457,1721871045080,-246.08483113,0.00013972,2]
[333107459,1721871045089,-625.59931749,0.00013972,2]
[333107461,1721871045098,-610.42,0.00013972,2]
[333107463,1721871045108,-500.0,0.00013972,2]
[333107465,1721871045119,-1261.98,0.00013972,2]
[333107467,1721871045135,-500.0,0.00013972,2]
[333107469,1721871045146,-1545.6,0.00013972,2]
[333107471,1721871045155,-500.0,0.00013972,2]
[333107473,1721871045164,-500.0,0.00013972,2]
[333107475,1721871045175,-947.77,0.00013972,2]
[333107477,1721871045184,-500.0,0.00013972,2]
[333107479,1721871045193,-1424.52,0.00013972,2]
[333107481,1721871045203,-500.0,0.00013972,2]
[333107483,1721871045212,-151.0,0.00013972,2]
[333107485,1721871045222,-151.0,0.00013972,2]
[333107487,1721871045238,-716.66,0.00013972,2]
[333107489,1721871045248,-1520.48,0.00013972,2]
[333107491,1721871045257,-600.95,0.00013972,2]
[333107493,1721871045267,-500.0,0.00013972,2]
[333107495,1721871045280,-500.0,0.00013972,2]
[333107497,1721871045290,-504.07908187,0.00013972,2]
[333107499,1721871045300,-500.0,0.00013972,2]
[333107501,1721871045310,-500.0,0.00013972,2]
[333107503,1721871045319,-500.0,0.00013972,2]
[333107505,1721871045329,-500.0,0.00013972,2]
[333107507,1721871045338,-329.23023946,0.00013972,2]
[333107509,1721871045348,-428.964651,0.00013972,2]
[333107511,1721871045357,-428.964651,0.00013972,2]
[333107513,1721871045366,-428.964651,0.00013972,2]
[333107515,1721871045376,-428.964651,0.00013972,2]
[333107517,1721871045385,-692.85,0.00013972,2]
[333107519,1721871045395,-500.0,0.00013972,2]
[333107521,1721871045405,-500.0,0.00013972,2]
[333107524,1721871045416,-500.0,0.00013972,2]
[333107526,1721871045426,-500.0,0.00013972,2]
[333107528,1721871045438,-500.0,0.00013972,2]
[333107530,1721871045448,-1110.88,0.00013972,2]
[333107532,1721871045458,-612.76,0.00013972,2]
[333107534,1721871045468,-1254.88,0.00013972,2]
[333107536,1721871045482,-1122.26,0.00013972,2]
[333107538,1721871045492,-725.94,0.00013972,2]
[333107540,1721871045501,-500.0,0.00013972,2]
[333107542,1721871045511,-1550.34,0.00013972,2]
[333107544,1721871045521,-500.0,0.00013972,2]
[333107546,1721871045531,-500.0,0.00013972,2]
[333107547,1721871045540,-483.04743619,0.00013972,2]
[333107575,1721871046119,-30.03256381,0.00013972,2]
[333107577,1721871046131,-1084.01,0.00013972,2]
[333107579,1721871046141,-500.0,0.00013972,2]
[333107581,1721871046155,-1517.05,0.00013972,2]
[333107583,1721871046165,-151.0,0.00013972,2]
[333107585,1721871046175,-151.0,0.00013972,2]
[333107587,1721871046186,-1336.113117,0.00013972,2]
[333107589,1721871046195,-1336.113117,0.00013972,2]
[333107591,1721871046205,-598.98166969,0.00013972,2]
[333107593,1721871046214,-1336.113117,0.00013972,2]
[333107595,1721871046226,-1336.113117,0.00013972,2]
[333107597,1721871046240,-500.0,0.00013972,2]
[333107599,1721871046250,-500.0,0.00013972,2]
[333107601,1721871046260,-1839.57,0.00013972,2]
[333107603,1721871046270,-780.13,0.00013972,2]
[333107605,1721871046280,-500.0,0.00013972,2]
[333107607,1721871046290,-1251.53,0.00013972,2]
[333107609,1721871046300,-383.67073235,0.00013972,2]
[333107611,1721871046309,-3997.58,0.00013972,2]
[333107613,1721871046319,-6225.23,0.00013972,2]
[333107615,1721871046329,-500.0,0.00013972,2]
[333107617,1721871046338,-500.0,0.00013972,2]
[333107619,1721871046348,-2181.31,0.00013972,2]
[333107621,1721871046357,-500.0,0.00013972,2]
[333107623,1721871046366,-500.0,0.00013972,2]
[333107625,1721871046376,-2551.899948,0.00013972,2]
[333107626,1721871046385,-2551.899948,0.00013972,2]
[333107627,1721871046395,-826.79,0.00013972,2]
[333107629,1721871046407,-500.0,0.00013972,2]
[333107631,1721871046418,-567.29295055,0.00013972,2]
[333107633,1721871046429,-655.47,0.00013972,2]
[333107635,1721871046439,-2551.899948,0.00013972,2]
[333107639,1721871046448,-2551.899948,0.00013972,2]
[333107642,1721871046458,-991.45,0.00013972,2]
[333107645,1721871046468,-1037.75,0.00013972,2]
[333107648,1721871046479,-589.63,0.00013972,2]
[333107650,1721871046489,-500.0,0.00013972,2]
[333107652,1721871046498,-1814.14,0.00013972,2]
[333107655,1721871046508,-4300.27,0.00013972,2]
[333107658,1721871046517,-500.0,0.00013972,2]
[333107660,1721871046527,-500.0,0.00013972,2]
[333107662,1721871046537,-1318.66,0.00013972,2]
[333107663,1721871046546,-1114.56668,0.00013972,2]
[333107664,1721871046556,-1114.56668,0.00013972,2]
[333107665,1721871046565,-809.85,0.00013972,2]
[333107666,1721871046575,-1035.17,0.00013972,2]
[333107667,1721871046586,-1947.75,0.00013972,2]
[333107668,1721871046596,-1114.56668,0.00013972,2]
[333107669,1721871046606,-1885.19,0.00013972,2]
[333107670,1721871046615,-1114.56668,0.00013972,2]
[333107671,1721871046625,-471.06056895,0.00013972,2]
[333107672,1721871046635,-151.0,0.00013972,2]
[333107673,1721871046645,-151.0,0.00013972,2]
[333107674,1721871046655,-151.0,0.00013972,2]
[333107675,1721871046666,-252.086746,0.00013972,2]
[333107676,1721871046676,-500.0,0.00013972,2]
[333107677,1721871046686,-500.0,0.00013972,2]
[333107678,1721871046697,-500.0,0.00013972,2]
[333107679,1721871046709,-616.55,0.00013972,2]
[333107680,1721871046720,-500.0,0.00013972,2]
[333107681,1721871046733,-500.0,0.00013972,2]
[333107682,1721871046744,-1493.84,0.00013972,2]
[333107683,1721871046755,-603.77,0.00013972,2]
[333107684,1721871046767,-1106.8,0.00013972,2]
[333107685,1721871046778,-500.0,0.00013972,2]
[333107686,1721871046790,-500.0,0.00013972,2]
[333107687,1721871046802,-8127.92,0.00013972,2]
[333107688,1721871046811,-1337.77,0.00013972,2]
[333107689,1721871046822,-866.11,0.00013972,2]
[333107690,1721871046832,-8405.95,0.00013972,2]
[333107691,1721871046844,-163.364259,0.00013972,2]
[333107692,1721871046856,-163.364259,0.00013972,2]
[333107693,1721871046866,-500.0,0.00013972,2]
[333107694,1721871046876,-500.0,0.00013972,2]
[333107695,1721871046886,-163.364259,0.00013972,2]
[333107696,1721871046897,-163.364259,0.00013972,2]
[333107697,1721871046908,-628.65,0.00013972,2]
[333107698,1721871046917,-519.21743312,0.00013972,2]
[333107699,1721871046927,-1834.58,0.00013972,2]
[333107700,1721871046938,-500.0,0.00013972,2]
[333107701,1721871046949,-3776.9,0.00013972,2]
[333107702,1721871046960,-3919.17,0.00013972,2]
[333107703,1721871046971,-151.0,0.00013972,2]
[333107704,1721871046984,-151.0,0.00013972,2]
[333107705,1721871046993,-500.0,0.00013972,2]
[333107706,1721871047002,-1180.57,0.00013972,2]
[333107707,1721871047010,-286.0,0.00013972,2]
[333107708,1721871047019,-623.96,0.00013972,2]
[333107709,1721871047028,-500.0,0.00013972,2]
[333107710,1721871047039,-423.60188235,0.00013972,2]
[333107711,1721871047049,-500.0,0.00013972,2]
[333107712,1721871047059,-500.0,0.00013972,2]
[333107713,1721871047069,-500.0,0.00013972,2]
[333107714,1721871047080,-1469.63,0.00013972,2]
[333107715,1721871047089,-500.0,0.00013972,2]
[333107716,1721871047099,-781.99,0.00013972,2]
[333107717,1721871047109,-500.0,0.00013972,2]
[333107718,1721871047119,-565.13,0.00013972,2]
[333107719,1721871047129,-500.0,0.00013972,2]
[333107720,1721871047139,-500.0,0.00013972,2]
[333107721,1721871047151,-636.59,0.00013972,2]
[333107722,1721871047161,-500.0,0.00013972,2]
[333107723,1721871047171,-500.0,0.00013972,2]
[333107724,1721871047182,-500.0,0.00013972,2]
[333107725,1721871047192,-500.0,0.00013972,2]
[333107726,1721871047203,-500.0,0.00013972,2]
[333107727,1721871047215,-2372.48,0.00013972,2]
[333107729,1721871047226,-2210.26,0.00013972,2]
[333107730,1721871047239,-500.0,0.00013972,2]
[333107732,1721871047249,-500.0,0.00013972,2]
[333107733,1721871047258,-500.0,0.00013972,2]
[333107734,1721871047267,-500.0,0.00013972,2]
[333107735,1721871047277,-1752.67,0.00013972,2]
[333107736,1721871047286,-800.81,0.00013972,2]
[333107737,1721871047295,-2618.96,0.00013972,2]
[333107738,1721871047306,-500.0,0.00013972,2]
[333107740,1721871047316,-1604.1,0.00013972,2]
[333107742,1721871047326,-500.0,0.00013972,2]
[333107744,1721871047337,-151.0,0.00013972,2]
[333107746,1721871047347,-151.0,0.00013972,2]
[333107748,1721871047356,-500.0,0.00013972,2]
[333107750,1721871047366,-1478.49,0.00013972,2]
[333107752,1721871047376,-500.0,0.00013972,2]
[333107754,1721871047387,-2167.49,0.00013972,2]
[333107756,1721871047397,-4049.96,0.00013972,2]
[333107758,1721871047408,-10162.15,0.00013972,2]
[333107761,1721871047419,-449.582763,0.00013972,2]
[333107763,1721871047429,-500.0,0.00013972,2]
[333107764,1721871047439,-449.582763,0.00013972,2]
[333107767,1721871047450,-500.0,0.00013972,2]
[333107769,1721871047461,-449.582763,0.00013972,2]
[333107771,1721871047471,-449.582763,0.00013972,2]
[333107773,1721871047485,-500.0,0.00013972,2]
[333107775,1721871047495,-502.69132394,0.00013972,2]
[333107777,1721871047506,-1444.66,0.00013972,2]
[333107779,1721871047517,-500.0,0.00013972,2]
[333107781,1721871047528,-500.0,0.00013972,2]
[333107783,1721871047538,-500.0,0.00013972,2]
[333107785,1721871047548,-500.0,0.00013972,2]
[333107787,1721871047558,-682.06,0.00013972,2]
[333107790,1721871047570,-1720.49,0.00013972,2]
[333107792,1721871047582,-437.596397,0.00013972,2]
[333107794,1721871047594,-437.596397,0.00013972,2]
[333107796,1721871047604,-500.0,0.00013972,2]
[333107798,1721871047614,-500.0,0.00013972,2]
[333107800,1721871047624,-521.65993509,0.00013972,2]
[333107802,1721871047634,-437.596397,0.00013972,2]
[333107804,1721871047644,-502.66604784,0.00013972,2]
[333107806,1721871047656,-437.596397,0.00013972,2]
[333107809,1721871047668,-500.0,0.00013972,2]
[333107811,1721871047679,-505.92978502,0.00013972,2]
[333107813,1721871047690,-500.0,0.00013972,2]
[333107815,1721871047700,-13091.78,0.00013972,2]
[333107817,1721871047710,-546.79,0.00013972,2]
[333107819,1721871047720,-500.0,0.00013972,2]
[333107821,1721871047733,-914.28,0.00013972,2]
[333107823,1721871047743,-3936.55,0.00013972,2]
[333107825,1721871047752,-4772.52,0.00013972,2]
[333107827,1721871047763,-612.65988662,0.00013972,2]
[333107829,1721871047773,-500.0,0.00013972,2]
[333107830,1721871047782,-500.0,0.00013972,2]
[333107833,1721871047793,-620.02944563,0.00013973,2]
[333107835,1721871047804,-150.112233,0.00014,2]
[333107837,1721871047815,-150.112233,0.00014,2]
[333107839,1721871047827,-150.112233,0.00014,2]
[333107841,1721871047838,-150.112233,0.000141,2]
[333107843,1721871047849,-150.112233,0.000141,2]
[333107845,1721871047859,-150.112233,0.000141,2]
[333107847,1721871047869,-262.1454126,0.00014103,2]
[333107849,1721871047878,-150.0,0.0001415,2]
[333107851,1721871047888,-10091.2501764,0.0001419,2]
[333107853,1721871047898,-5091.6,0.000142,2]
[333107855,1721871047909,-150.112233,0.000142,2]
[333107858,1721871047920,-3000.0,0.000142,30]
[333107860,1721871047930,-150.112233,0.000142,2]
[333107862,1721871047941,-599.0,0.000142,2]
[333107864,1721871047952,-3000.0,0.0001421,30]
[333107866,1721871047963,-3000.0,0.0001422,30]
[333107868,1721871047974,-3000.0,0.0001423,30]
[333107871,1721871047997,-366.45027719,0.00014232,2]
[333107873,1721871048008,-5090.9658314,0.00014233,2]
[333107875,1721871048018,-10091.2501764,0.00014235,2]
[333107877,1721871048031,-151.0,0.00014236,2]
[333107879,1721871048041,-428.964651,0.00014236,2]
[333107881,1721871048051,-428.964651,0.00014236,2]
[333107883,1721871048062,-2551.899948,0.00014236,2]
[333107885,1721871048073,-2551.899948,0.00014236,2]
[333107888,1721871048083,-163.364259,0.00014236,2]
[333107890,1721871048094,-163.364259,0.00014236,2]
[333107892,1721871048103,-151.0,0.00014236,2]
[333107911,1721871048299,-151.0,0.00014236,2]
[333107913,1721871048311,-449.582763,0.00014236,2]
[333107915,1721871048321,-449.582763,0.00014236,2]
[333107917,1721871048331,-437.596397,0.00014236,2]
[333107919,1721871048341,-437.596397,0.00014236,2]
[333107921,1721871048351,-20182.5003528,0.00014236,2]
[333107924,1721871048361,-3000.0,0.0001424,30]
[333107926,1721871048370,-1114.56668,0.0001424,2]
[333107928,1721871048381,-1114.56668,0.0001424,2]
[333107930,1721871048391,-151.0,0.0001424,2]
[333107932,1721871048400,-151.0,0.00014245,2]
[333107934,1721871048410,-1336.113117,0.00014245,2]
[333107936,1721871048420,-1336.113117,0.00014245,2]
[333107938,1721871048431,-19886.9084082,0.00014246,5]
[333107940,1721871048442,-151.0,0.00014246,2]
[333107942,1721871048452,-511.80856105,0.00014246,2]
[333107944,1721871048462,-7523.67009285,0.00014246,2]
[333107946,1721871048472,-154.68290005,0.00014246,2]
[333107948,1721871048484,-500.0,0.00014246,2]
[333107950,1721871048495,-500.0,0.00014246,2]
[333107952,1721871048505,-500.0,0.00014246,2]
[333107954,1721871048516,-511.20157503,0.00014246,2]
[333107956,1721871048526,-151.0,0.00014246,2]
[333107958,1721871048537,-500.0,0.00014246,2]
[333107960,1721871048547,-500.0,0.00014246,2]
[333107962,1721871048557,-500.0,0.00014246,2]
[333107965,1721871048567,-500.0,0.00014246,2]
[333107967,1721871048578,-964.1,0.00014246,2]
[333107969,1721871048589,-500.0,0.00014246,2]
[333107971,1721871048599,-500.0,0.00014246,2]
[333107973,1721871048609,-639.71,0.00014246,2]
[333107975,1721871048619,-1664.1,0.00014246,2]
[333107977,1721871048628,-500.0,0.00014246,2]
[333107979,1721871048638,-500.0,0.00014246,2]
[333107981,1721871048648,-151.0,0.00014246,2]
[333107983,1721871048658,-151.0,0.00014246,2]
[333107985,1721871048669,-151.0,0.00014246,2]
[333107987,1721871048679,-500.0,0.00014246,2]
[333107989,1721871048692,-151.0,0.00014246,2]
[333107991,1721871048703,-151.0,0.00014246,2]
[333107994,1721871048715,-790.75,0.00014246,2]
[333107996,1721871048724,-500.0,0.00014246,2]
[333107998,1721871048736,-596.79,0.00014246,2]
[333108000,1721871048747,-500.0,0.00014246,2]
[333108002,1721871048756,-500.0,0.00014246,2]
[333108004,1721871048767,-500.0,0.00014246,2]
[333108006,1721871048782,-500.0,0.00014246,2]
[333108008,1721871048793,-498.71191854,0.00014246,2]
[333108010,1721871048803,-500.0,0.00014246,2]
[333108012,1721871048813,-1882.56,0.00014246,2]
[333108015,1721871048824,-1778.67,0.00014246,2]
[333108017,1721871048834,-500.0,0.00014246,2]
[333108019,1721871048844,-500.0,0.00014246,2]
[333108021,1721871048854,-151.0,0.00014246,2]
[333108023,1721871048864,-151.0,0.00014246,2]
[333108025,1721871048875,-2018.77,0.00014246,2]
[333108027,1721871048884,-500.0,0.00014246,2]
[333108029,1721871048894,-151.0,0.00014246,2]
[333108031,1721871048904,-151.0,0.00014246,2]
[333108033,1721871048914,-500.0,0.00014246,2]
[333108035,1721871048924,-500.0,0.00014246,2]
[333108037,1721871048935,-500.0,0.00014246,2]
[333108039,1721871048945,-264.410918,0.00014246,2]
[333108042,1721871048955,-1018.74,0.00014246,2]
[333108044,1721871048966,-264.410918,0.00014246,2]
[333108046,1721871048976,-264.410918,0.00014246,2]
[333108048,1721871048988,-264.410918,0.00014246,2]
[333108050,1721871048998,-508.97254975,0.00014246,2]
[333108052,1721871049007,-3232.88,0.00014246,2]
[333108054,1721871049017,-500.0,0.00014246,2]
[333108056,1721871049026,-500.0,0.00014246,2]
[333108058,1721871049037,-1600.35,0.00014246,2]
[333108060,1721871049047,-394.384799,0.00014246,2]
[333108062,1721871049058,-394.384799,0.00014246,2]
[333108064,1721871049069,-394.384799,0.00014246,2]
[333108066,1721871049079,-394.384799,0.00014246,2]
[333108068,1721871049088,-991.27,0.00014246,2]
[333108070,1721871049099,-500.0,0.00014246,2]
[333108073,1721871049110,-535.78,0.00014246,2]
[333108075,1721871049122,-500.0,0.00014246,2]
[333108077,1721871049133,-610.42,0.00014246,2]
[333108079,1721871049143,-500.0,0.00014246,2]
[333108081,1721871049156,-1261.98,0.00014246,2]
[333108083,1721871049165,-500.0,0.00014246,2]
[333108085,1721871049175,-1545.6,0.00014246,2]
[333108087,1721871049186,-365.03352692,0.00014246,2]
[333108089,1721871049196,-947.77,0.00014246,2]
[333108091,1721871049206,-500.0,0.00014246,2]
[333108093,1721871049216,-1424.52,0.00014246,2]
[333108095,1721871049227,-373.76132002,0.00014246,2]
[333108097,1721871049240,-151.0,0.00014246,2]
[333108099,1721871049250,-716.66,0.00014246,2]
[333108101,1721871049260,-1520.48,0.00014246,2]
[333108103,1721871049270,-600.95,0.00014246,2]
[333108105,1721871049280,-500.0,0.00014246,2]
[333108107,1721871049290,-500.0,0.00014246,2]
[333108109,1721871049300,-500.0,0.00014246,2]
[333108111,1721871049311,-500.0,0.00014246,2]
[333108113,1721871049321,-428.964651,0.00014246,2]
[333108114,1721871049331,-692.85,0.00014246,2]
[333108116,1721871049341,-428.964651,0.00014246,2]
[333108118,1721871049352,-500.0,0.00014246,2]
[333108120,1721871049362,-500.0,0.00014246,2]
[333108122,1721871049372,-500.0,0.00014246,2]
[333108124,1721871049383,-500.0,0.00014246,2]
[333108126,1721871049393,-1110.88,0.00014246,2]
[333108128,1721871049404,-612.76,0.00014246,2]
[333108131,1721871049416,-1122.26,0.00014246,2]
[333108132,1721871049426,-1254.88,0.00014246,2]
[333108135,1721871049438,-725.94,0.00014246,2]
[333108137,1721871049449,-500.0,0.00014246,2]
[333108139,1721871049460,-1550.34,0.00014246,2]
[333108141,1721871049470,-500.0,0.00014246,2]
[333108143,1721871049482,-500.0,0.00014246,2]
[333108145,1721871049493,-513.08,0.00014246,2]
[333108147,1721871049504,-1084.01,0.00014246,2]
[333108149,1721871049515,-500.0,0.00014246,2]
[333108151,1721871049528,-1517.05,0.00014246,2]
[333108153,1721871049541,-151.0,0.00014246,2]
[333108155,1721871049550,-1336.113117,0.00014246,2]
[333108157,1721871049562,-1336.113117,0.00014246,2]
[333108159,1721871049573,-500.0,0.00014246,2]
[333108161,1721871049585,-534.43843418,0.00014246,2]
[333108163,1721871049595,-1839.57,0.00014246,2]
[333108165,1721871049606,-780.13,0.00014246,2]
[333108167,1721871049616,-500.0,0.00014246,2]
[333108169,1721871049627,-1251.53,0.00014246,2]
[333108171,1721871049638,-3997.58,0.00014246,2]
[333108173,1721871049648,-5724.75395704,0.00014246,2]
[333108192,1721871049837,-500.47604296,0.00014246,2]
[333108194,1721871049848,-500.0,0.00014246,2]
[333108196,1721871049858,-500.0,0.00014246,2]
[333108198,1721871049868,-160.92283569,0.00014246,2]
[333108200,1721871049878,-2181.31,0.00014246,2]
[333108202,1721871049890,-500.0,0.00014246,2]
[333108204,1721871049900,-2551.899948,0.00014246,2]
[333108206,1721871049911,-826.79,0.00014246,2]
[333108208,1721871049921,-655.47,0.00014246,2]
[333108210,1721871049933,-2551.899948,0.00014246,2]
[333108212,1721871049943,-583.02371634,0.00014246,2]
[333108215,1721871049963,-408.42628366,0.00014246,2]
[333108217,1721871049974,-885.00207115,0.00014246,2]
[333108253,1721871050352,-1315.89898094,0.0001359,2]
[333108256,1721871050365,-500.0,0.00013698,2]
[333108258,1721871050376,-500.0,0.00013698,2]
[333108261,1721871050389,-500.0,0.00013698,2]
[333108263,1721871050401,-503.56603829,0.00013972,2]
[333108265,1721871050412,-287.69636042,0.00013972,2]
[333108267,1721871050422,-500.0,0.00013972,2]
[333108269,1721871050433,-152.74792885,0.00014246,2]
[333108271,1721871050444,-589.63,0.00014246,2]
[333108274,1721871050454,-500.0,0.00014246,2]
[333108276,1721871050465,-1814.14,0.00014246,2]
[333108278,1721871050477,-4300.27,0.00014246,2]
[333108280,1721871050491,-500.0,0.00014246,2]
[333108283,1721871050505,-721.82622549,0.00014246,2]
[333108285,1721871050517,-596.83377451,0.00014246,2]
[333108287,1721871050528,-1114.56668,0.00014246,2]
[333108289,1721871050538,-809.85,0.00014246,2]
[333108291,1721871050548,-1035.17,0.00014246,2]
[333108293,1721871050558,-1947.75,0.00014246,2]
[333108295,1721871050568,-1885.19,0.00014246,2]
[333108297,1721871050578,-1114.56668,0.00014246,2]
[333108300,1721871050588,-151.0,0.00014246,2]
[333108302,1721871050598,-496.65481811,0.00014246,2]
[333108304,1721871050608,-500.0,0.00014246,2]
[333108306,1721871050619,-500.0,0.00014246,2]
[333108308,1721871050629,-616.55,0.00014246,2]
[333108310,1721871050640,-478.39939361,0.00014246,2]
[333108313,1721871050652,-500.0,0.00014246,2]